Cogmind - Beta 14 @@@ ROGUE MODE // 2024.08.11 @ 19:15:46 Player: Yuba Result: Destroyed by S-43 Plague with Heavy Machine Gun Performance ------------- Evolutions (7) 3500 Regions Visited (10) 2000 Robots Destroyed (41) 205 Value Destroyed (1813) 1813 Prototype IDs (2) 40 Alien Tech Used (0) 0 Bonus (240) 240 TOTAL SCORE: 7798 Bonus ------- Aligned with FarCom 300 Friendly Fire -60 Cogmind --------- Core Integrity 0/1300 Matter 252/300 Energy 99/100 System Corruption 13% Temperature Cool (0) Movement Core (50) Location -3/Research Parts ------- > --- POWER (4) -------- (None) > --- PROPULSION (4) --- (None) > --- UTILITY (8) ------ Advanced Visual Processing Unit > --- WEAPON (5) ------- (None) > --- INVENTORY (5) ---- Advanced Heat Sink EM Disruption Field Recalibrator Peak State ------------ > --- POWER ------------ Light Particle Reactor Light Particle Reactor Light Particle Reactor > --- PROPULSION ------- Flexi-carbon Leg Flexi-carbon Leg Potential Leg Potential Leg > --- UTILITY ---------- Advanced Cooling System High-capacity Storage Unit Energy Well High-capacity Matter Pod Improved Weapon Cycler Advanced Shield Generator > --- WEAPON ----------- Tesla Rifle Gatling Laser Gatling Laser Wave Gun > --- INVENTORY -------- Light Fission Core Light Particle Reactor Flexi-carbon Leg Flexi-carbon Leg Advanced Heat Sink Advanced Heat Sink High-capacity Storage Unit Kinecellerator Weapon Cycler EM Disruption Field Recalibrator Lightning Gun Lightning Gun Arc Projector Heavy Ion Cannon Enhanced Autogun [Rating: 106] Favorites ----------- Power Light Ion Engine Engine Light Ion Engine Power Core Light Nuclear Core Reactor Light Particle Reactor Propulsion Potential Leg Treads Advanced Medium Treads Leg Potential Leg Utility Large Battery Device Improved Heat Sink Storage Large Battery Processor Advanced Visual Processing Unit Protection Improved Light Armor Plating Weapon Gauss Rifle Energy Gun Lightning Gun Energy Cannon Heavy Ion Cannon Ballistic Gun Gauss Rifle Ballistic Cannon Heavy Mass Driver Launcher Rocket Launcher Build | -11 -10 -10 -10 -9 -8 -7 -6 -5 -4 -3 ------- Run | Yrd Mat Min Exi Min Mat Fac Fac Fac Fac Res Slots Evolved 14 | . . . . . 4 2 2 2 2 2 Power 3 | . . . . . 1 . 1 . 1 . Propulsion 2 | . . . . . 2 . . . . . Utility 6 | . . . . . 1 1 1 1 1 1 Weapon 3 | . . . . . . 1 . 1 . 1 Parts Attached 89 | 6 7 5 3 2 7 16 7 30 4 2 Power 19 | 1 2 1 . . 2 3 3 7 . . Engine 9 | 1 2 1 . . 1 2 2 . . . Core 6 | . . . . . 1 1 1 3 . . Reactor 4 | . . . . . . . . 4 . . Propulsion 17 | 2 1 1 2 . 2 4 1 3 . 1 Treads 1 | . . . . . . . . . . 1 Leg 16 | 2 1 1 2 . 2 4 1 3 . . Wheel . | . . . . . . . . . . . Hover . | . . . . . . . . . . . Flight . | . . . . . . . . . . . Utility 23 | 1 2 . 1 1 1 3 2 7 4 1 Device 13 | . 1 . . . . 2 1 6 2 1 Storage 8 | 1 1 . 1 1 1 1 . 1 1 . Processor 1 | . . . . . . . . . 1 . Hackware . | . . . . . . . . . . . Protection 1 | . . . . . . . 1 . . . Artifact . | . . . . . . . . . . . Weapon 30 | 2 2 3 . 1 2 6 1 13 . . Energy Gun 18 | . 2 1 . . 2 4 . 9 . . Energy Cannon 1 | . . . . . . . . 1 . . Ballistic Gun 9 | 2 . 2 . . . 2 1 2 . . Ballistic Cannon 1 | . . . . . . . . 1 . . Launcher 1 | . . . . 1 . . . . . . Special Weapon . | . . . . . . . . . . . Impact Weapon . | . . . . . . . . . . . Slashing Weapon . | . . . . . . . . . . . Piercing Weapon . | . . . . . . . . . . . Special Melee Weapon . | . . . . . . . . . . . Unidentified Prototypes 2 | . . . 1 . . . . 1 . . Parts Lost 37 | . . . . . . 4 . 25 4 4 Power 8 | . . . . . . 2 . 6 . . Propulsion 7 | . . . . . . 1 . 4 1 1 Utility 10 | . . . . . . . . 5 2 3 Weapon 12 | . . . . . . 1 . 10 1 . Highest Loss Streak 23 | . . . . . . 3 . 23 4 4 To Critical Strikes 2 | . . . . . . . . 1 1 . Average Slot Usage (%) 86 | . 99 100 100 100 100 98 99 93 30 14 Engine 8 | . 14 14 14 14 17 8 6 2 . . Core 3 | . . . . . . 5 12 6 . . Reactor 1 | . . . . . . . . 5 . . Leg 23 | . 28 28 28 28 36 29 26 21 3 . Device 7 | . 3 14 12 . . 7 6 13 12 4 Storage 17 | . 23 14 15 28 27 23 20 16 5 3 Protection 1 | . . . . . . . 6 2 . . Energy Gun 6 | . 13 14 . . 4 15 . 9 . . Ballistic Gun 12 | . 14 13 28 19 6 7 19 11 . . Peak Build Rating 106 | 6 7 7 25 29 43 53 69 106 35 19 Average Rating 38 | 4 6 7 9 26 34 50 66 81 28 10 On Entrance 25 | . 6 7 7 25 29 43 53 69 29 9 Naked Turns . | . . . . . . . . . . . Heaviest Build 117 | 12 17 13 48 51 60 68 87 117 66 42 Greatest Support 100 | 20 20 20 60 60 80 90 95 100 20 30 Greatest Overweight (x) 15 | . . . 2 . . . . 3 15 13 Average Overweight (x) . | . . . . . . . . . 4 5 Largest Inventory Capacity 20 | 8 8 5 20 20 20 20 20 20 20 20 Average Capacity 16 | 6 7 5 7 20 20 20 20 20 20 19 Most Carried 20 | 4 8 5 6 17 20 20 20 20 7 5 Average Carried 11 | 2 6 3 3 11 12 19 19 16 4 3 Final Capacity 20 | 8 5 5 20 20 20 20 20 20 20 5 Final Carried 20 | 4 5 3 6 13 20 20 20 7 4 3 Class Distribution -------------------- 52% | Mutant 25% | Skirmisher 18% | Scavenger-Skirmisher Dominant Class ---------------- Mutant | -10/Materials Mutant | -10/Mines Mutant | -10/Exiles Mutant | -9/Mines Mutant | -8/Materials Scavenger-Skirmisher | -7/Factory Skirmisher | -6/Factory Skirmisher | -5/Factory Scavenger-Mutant | -4/Factory Mutant | -3/Research Resources | -11 -10 -10 -10 -9 -8 -7 -6 -5 -4 -3 ----------- Run | Yrd Mat Min Exi Min Mat Fac Fac Fac Fac Res Matter Collected 1383 | 220 112 50 . 62 106 152 130 551 . . Remotely . | . . . . . . . . . . . Salvage Created 2046 | . 139 133 . 87 161 274 167 1085 . . Parts 84 | . 11 8 . 5 5 17 4 34 . . Haulers Intercepted . | . . . . . . . . . . . Recyclers Shooed 3 | . . . . . . . 1 2 . . Parts Field Recycled . | . . . . . . . . . . . Retrieved Matter . | . . . . . . . . . . . Parts Self-Destructed . | . . . . . . . . . . . Prevented . | . . . . . . . . . . . Kills | -11 -10 -10 -10 -9 -8 -7 -6 -5 -4 -3 ------- Run | Yrd Mat Min Exi Min Mat Fac Fac Fac Fac Res Combat Hostiles Destroyed 36 | . 5 5 . 2 2 4 2 16 . . Guns 32 | . 5 3 . 2 1 4 2 15 . . Cannons 1 | . . . . . . . . 1 . . AOE 1 | . . . . . 1 . . . . . Classes Destroyed 10 | . 3 . . . 1 3 . 3 . . Recycler 3 | . . . . . 1 . 1 1 . . Operator 1 | . . . . . . 1 . . . . Watcher 1 | . 1 . . . . . . . . . Swarmer 10 | . 3 3 . . . . 2 2 . . Grunt 13 | . 2 2 . 2 2 . . 5 . . Sentry 3 | . . . . . . 3 . . . . Specialist 4 | . . . . . . . . 4 . . Hunter 1 | . . . . . . 1 . . . . Programmer 4 | . . . . . . . . 4 . . Heavy 1 | . . . . . . . . 1 . . Best Kill Streak 6 | . 3 2 . 2 2 2 1 6 . . Combat Bots Only 6 | . 3 2 . 2 1 2 1 6 . . Max Kills in Single Turn 2 | . 1 2 . 1 2 1 1 2 . . Gunslinging 1 | . . . . . . . . 1 . . Exploded 1 | . . . . . 1 . . . . . Melee . | . . . . . . . . . . . Uniques/NPCs Destroyed . | . . . . . . . . . . . Combat | -11 -10 -10 -10 -9 -8 -7 -6 -5 -4 -3 -------- Run | Yrd Mat Min Exi Min Mat Fac Fac Fac Fac Res Hostile Shots Fired 673 | . 32 36 . 14 . 85 4 242 152 108 Missed 189 | . 9 12 . 6 . 36 1 49 42 34 Damage Taken 8826 | . 241 233 . 91 22 887 44 3825 1752 1731 Core 3448 | . 47 56 . 21 . 197 . 734 1082 1311 Absorbed by Shields 233 | . . . . . . . . 233 . . Core Remaining (%) 64 | 100 . . . 50 100 71 100 26 5 . Volleys Fired 130 | . 21 19 . 6 5 14 4 61 . . Largest 4 | . 2 2 . 2 2 3 3 4 . . Hottest 306 | . 100 100 . 40 110 165 84 306 . . Shots Fired 338 | . 42 38 . 12 10 38 12 186 . . Gun 314 | . 42 38 . 12 7 38 12 165 . . Cannon 21 | . . . . . . . . 21 . . Launcher 3 | . . . . . 3 . . . . . Special . | . . . . . . . . . . . Kinetic 137 | . 2 . . 12 3 13 12 95 . . Thermal 139 | . 40 38 . . . 3 . 58 . . Explosive 3 | . . . . . 3 . . . . . Electromagnetic 59 | . . . . . 4 22 . 33 . . Robot Hit Streak 10 | . 6 9 . 9 1 6 4 10 . . Robot Miss Streak 9 | . 5 9 . 2 4 1 1 4 . . Penetration Max 1 | . . . . . . . . 1 . . Secondary Targets 6 | . . 1 . . . . . 5 . . Max Gunslinging Chain 1 | . . 1 . . . . . 1 . . Shots Hit Robots 205 | . 22 21 . 9 2 25 7 119 . . Core Hits 96 | . 9 6 . 5 7 13 4 52 . . Critical Kills . | . . . . . . . . . . . Critical Parts Destroyed 2 | . . . . . . . . 2 . . Critical Strikes 10 | . 4 2 . . . . . 4 . . Burn 6 | . 4 2 . . . . . . . . Destroy 2 | . . . . . . . . 2 . . Blast 1 | . . . . . . . . 1 . . Corrupt 1 | . . . . . . . . 1 . . Melee Attacks . | . . . . . . . . . . . Impact . | . . . . . . . . . . . Slashing . | . . . . . . . . . . . Piercing . | . . . . . . . . . . . Sneak Attacks . | . . . . . . . . . . . Combat Hostiles . | . . . . . . . . . . . Follow-up Attacks . | . . . . . . . . . . . Damage Inflicted 4337 | . 274 268 . 123 199 494 197 2782 . . Guns 3518 | . 274 268 . 73 30 452 163 2258 . . Cannons 524 | . . . . . . . . 524 . . Explosions 169 | . . . . . 169 . . . . . Melee . | . . . . . . . . . . . Ramming 126 | . . . . 50 . 42 34 . . . Kinetic 1745 | . 10 . . 73 9 114 163 1376 . . Thermal 1862 | . 264 268 . . . 76 . 1254 . . Explosive 169 | . . . . . 169 . . . . . Electromagnetic 435 | . . . . . 21 262 . 152 . . Impact . | . . . . . . . . . . . Slashing . | . . . . . . . . . . . Piercing . | . . . . . . . . . . . Highest Corruption 13 | . . . . . . 1 . 3 . 13 Average Corruption 1 | . . . . . . 1 . 2 . 8 Corruption Purged . | . . . . . . . . . . . Corruption Blocked . | . . . . . . . . . . . Effects 5 | . . . . . . 4 . . . 1 Matter Fused 2 | . . . . . . 2 . . . . Heat Flow Errors 1 | . . . . . . . . . . 1 Energy Discharges 1 | . . . . . . 1 . . . . Misfires 1 | . . . . . . 1 . . . . Overload Shots . | . . . . . . . . . . . Overflow Damage 138 | . . . . . . 137 . 1 . . Projectiles 1 | . . . . . . . . 1 . . Explosions 137 | . . . . . . 137 . . . . Melee . | . . . . . . . . . . . Knockbacks 4 | . . . . 1 . . . 3 . . Impact 1 | . . . . 1 . . . . . . Kinetic 3 | . . . . . . . . 3 . . Secondary . | . . . . . . . . . . . Self-Inflicted Damage 382 | . . . . . 23 359 . . . . Shots 5 | . . . . . 1 4 . . . . Rammed . | . . . . . . . . . . . Targets Rammed 9 | . . . . 4 . 3 2 . . . Kicked 9 | . . . . 4 . 3 2 . . . Crushed . | . . . . . . . . . . . Highest Temperature 651 | . 309 87 . 15 90 159 3 651 . 62 Average Temperature 134 | . 127 44 . 8 32 72 2 187 . 39 Received Heat Transfer 706 | . 75 69 . 51 . 105 . 406 . . Effects 30 | . . . . . . . . 30 . . Shutdowns 12 | . . . . . . . . 12 . . Energy Bleed 2 | . . . . . . . . 2 . . Interference 7 | . . . . . . . . 7 . . Matter Decay 3 | . . . . . . . . 3 . . Short Circuit 1 | . . . . . . . . 1 . . Damage (minor) 2 | . . . . . . . . 2 . . Damage (major) 2 | . . . . . . . . 2 . . Damage (core) 1 | . . . . . . . . 1 . . Siege Activations . | . . . . . . . . . . . Robots Corrupted . | . . . . . . . . . . . Combat Hostiles . | . . . . . . . . . . . Parts Fried 3 | . . . . . . 3 . . . . Impact Corruptions . | . . . . . . . . . . . Robots Melted 2 | . . 2 . . . . . . . . Combat Hostiles 2 | . . 2 . . . . . . . . Parts Melted 13 | . 1 2 . . 1 . . 9 . . Heat Transferred 4390 | . 1073 914 . . . 175 . 2228 . . Parts Sabotaged . | . . . . . . . . . . . Parts Stolen . | . . . . . . . . . . . Parts Stripped . | . . . . . . . . . . . Power Chain Reactions 1 | . . . . . . 1 . . . . Alert | -11 -10 -10 -10 -9 -8 -7 -6 -5 -4 -3 ------- Run | Yrd Mat Min Exi Min Mat Fac Fac Fac Fac Res Peak Influence 319 | . 122 182 . 55 113 183 81 319 74 17 Initial 74 | . . 47 . . 21 51 30 9 74 17 Average 59 | . 22 141 . 50 49 81 33 89 64 9 Maximum Alert Level 1 | . . . . . . . . 1 . . Low Security (%) 98 | 100 100 100 . 100 100 100 100 91 100 100 Level 1 1 | . . . . . . . . 8 . . Level 2 . | . . . . . . . . . . . Level 3 . | . . . . . . . . . . . Level 4 . | . . . . . . . . . . . Level 5 . | . . . . . . . . . . . High Security . | . . . . . . . . . . . Max Security . | . . . . . . . . . . . Squads Dispatched 16 | . . . . . 2 4 . 9 . 1 Investigation 2 | . . . . . 1 1 . . . . Extermination 4 | . . . . . . 1 . 2 . 1 Reinforcement 8 | . . . . . 1 2 . 5 . . Assault 1 | . . . . . . . . 1 . . Garrison 1 | . . . . . . . . 1 . . Intercept . | . . . . . . . . . . . Searches Triggered . | . . . . . . . . . . . Construction Impeded 1 | . . . . . . 1 . . . . Haulers Reinforced . | . . . . . . . . . . . Active Scanning Responses . | . . . . . . . . . . . Cargo Convoy Interrupts . | . . . . . . . . . . . Stealth | -11 -10 -10 -10 -9 -8 -7 -6 -5 -4 -3 --------- Run | Yrd Mat Min Exi Min Mat Fac Fac Fac Fac Res Distress Signals 2 | . . . . . 1 1 . . . . Communications Jammed . | . . . . . . . . . . . Distress Signals . | . . . . . . . . . . . Times Spotted 80 | . 9 5 . 3 5 8 7 33 3 7 Peak Tracking Total 8 | . 3 3 . 3 2 4 3 8 2 7 Tactical Retreats 4 | . 2 . . 1 . 1 . . . . Traps | -11 -10 -10 -10 -9 -8 -7 -6 -5 -4 -3 ------- Run | Yrd Mat Min Exi Min Mat Fac Fac Fac Fac Res Traps Triggered 2 | . . . . . . 2 . . . . Indirectly . | . . . . . . . . . . . Trap Hack Attempts . | . . . . . . . . . . . Triggered . | . . . . . . . . . . . Disarmed . | . . . . . . . . . . . Reprogrammed . | . . . . . . . . . . . Reused . | . . . . . . . . . . . Traps Extracted . | . . . . . . . . . . . Installed . | . . . . . . . . . . . Triggered . | . . . . . . . . . . . Most Traps Carried 4 | . . . . 4 4 4 4 4 . . Machines | -11 -10 -10 -10 -9 -8 -7 -6 -5 -4 -3 ---------- Run | Yrd Mat Min Exi Min Mat Fac Fac Fac Fac Res Machines Disabled 6 | . . . . . 1 4 . 1 . . Max in Single Turn 4 | . . . . . 1 4 . 1 . . Garrison Access 1 | . . . . . . . . 1 . . Machines Repaired . | . . . . . . . . . . . Machines Dismantled . | . . . . . . . . . . . Machines Sabotaged . | . . . . . . . . . . . Overloaded Fab Kills . | . . . . . . . . . . . Hacking | -11 -10 -10 -10 -9 -8 -7 -6 -5 -4 -3 --------- Run | Yrd Mat Min Exi Min Mat Fac Fac Fac Fac Res Machines Accessed 8 | . 2 . 4 . . 2 . . . . Terminals 3 | . 2 . . . . 1 . . . . Fabricators . | . . . . . . . . . . . Repair Stations 1 | . . . . . . 1 . . . . Recycling Units . | . . . . . . . . . . . Scanalyzers . | . . . . . . . . . . . Garrison Access . | . . . . . . . . . . . Total Hacks 53 | . 2 . 49 . . 2 . . . . Successful 52 | . 2 . 49 . . 1 . . . . Failed 1 | . . . . . . 1 . . . . Catastrophic . | . . . . . . . . . . . Database Lockouts . | . . . . . . . . . . . Manual 1 | . . . 1 . . . . . . . Terminals 3 | . 2 . . . . 1 . . . . Fabricators . | . . . . . . . . . . . Repair Stations 1 | . . . . . . 1 . . . . Recycling Units . | . . . . . . . . . . . Scanalyzers . | . . . . . . . . . . . Garrison Access . | . . . . . . . . . . . Terminal Hacks 52 | . 2 . 49 . . 1 . . . . Record 50 | . 1 . 49 . . . . . . . Alert Level 1 | . 1 . . . . . . . . . Locate Traps 1 | . . . . . . 1 . . . . Fabricator Hacks . | . . . . . . . . . . . Repair Station Hacks . | . . . . . . . . . . . Recycling Unit Hacks . | . . . . . . . . . . . Scanalyzer . | . . . . . . . . . . . Garrison Access Hacks . | . . . . . . . . . . . Unauthorized Hacks . | . . . . . . . . . . . Terminals . | . . . . . . . . . . . Fabricators . | . . . . . . . . . . . Repair Stations . | . . . . . . . . . . . Recycling Units . | . . . . . . . . . . . Scanalyzers . | . . . . . . . . . . . Garrison Access . | . . . . . . . . . . . Data Cores Recovered 2 | . . . . . . 1 1 . . . Used 1 | . . . . . . 1 . . . . Hacking Detections 3 | . 2 . . . . 1 . . . . Full Trace Events . | . . . . . . . . . . . Feedback Events . | . . . . . . . . . . . Feedback Blocked . | . . . . . . . . . . . Robot Schematics Acquired . | . . . . . . . . . . . Robots Built . | . . . . . . . . . . . Authchips . | . . . . . . . . . . . Time . | . . . . . . . . . . . Total Robot Build Rating . | . . . . . . . . . . . Part Schematics Acquired . | . . . . . . . . . . . Parts Built . | . . . . . . . . . . . Authchips . | . . . . . . . . . . . Time . | . . . . . . . . . . . Total Part Build Rating . | . . . . . . . . . . . Parts Repaired . | . . . . . . . . . . . Time . | . . . . . . . . . . . Parts Recycled . | . . . . . . . . . . . Recycled Matter . | . . . . . . . . . . . Retrieved Matter . | . . . . . . . . . . . Retrieved Components . | . . . . . . . . . . . Parts Scanalyzed . | . . . . . . . . . . . Part Schematics Acquired . | . . . . . . . . . . . Parts Damaged . | . . . . . . . . . . . Bothacking | -11 -10 -10 -10 -9 -8 -7 -6 -5 -4 -3 ------------ Run | Yrd Mat Min Exi Min Mat Fac Fac Fac Fac Res Used RIF Installer . | . . . . . . . . . . . Robots Hacked . | . . . . . . . . . . . Non-combat . | . . . . . . . . . . . Combat . | . . . . . . . . . . . Robot Hacks Applied . | . . . . . . . . . . . Relay Couplers Released 4 | . . . . . . . . 4 . . Machine Destruction 4 | . . . . . . . . 4 . . Fabnet Peak Effective % . | . . . . . . . . . . . Robots Rewired . | . . . . . . . . . . . Allies Hacked . | . . . . . . . . . . . Hacks Repelled . | . . . . . . . . . . . Allies | -11 -10 -10 -10 -9 -8 -7 -6 -5 -4 -3 -------- Run | Yrd Mat Min Exi Min Mat Fac Fac Fac Fac Res Total Allies . | . . . . . . . . . . . Largest Group . | . . . . . . . . . . . Highest-Rated Group . | . . . . . . . . . . . Highest-Rated Ally . | . . . . . . . . . . . Total Orders . | . . . . . . . . . . . Ally Attacks . | . . . . . . . . . . . Total Damage . | . . . . . . . . . . . Kills . | . . . . . . . . . . . Allies Corrupted . | . . . . . . . . . . . Allies Melted . | . . . . . . . . . . . Intel | -11 -10 -10 -10 -9 -8 -7 -6 -5 -4 -3 ------- Run | Yrd Mat Min Exi Min Mat Fac Fac Fac Fac Res Robot Analysis Total . | . . . . . . . . . . . Derelict Logs Recovered 3 | . . 1 . 2 . . . . . . Drone Launches . | . . . . . . . . . . . Drone Recoveries . | . . . . . . . . . . . Exploration | -11 -10 -10 -10 -9 -8 -7 -6 -5 -4 -3 ------------- Run | Yrd Mat Min Exi Min Mat Fac Fac Fac Fac Res Turns Passed 6393 | 71 557 288 875 359 327 1057 721 1183 245 710 Spaces Moved 4595 | 49 393 181 752 360 277 911 652 752 65 203 Core 171 | 4 . . . . . . . . 9 158 Treads 45 | . . . . . . . . . . 45 Legs 4379 | 45 393 181 752 360 277 911 652 752 56 . Wheels . | . . . . . . . . . . . Hover . | . . . . . . . . . . . Flight . | . . . . . . . . . . . Fastest Speed 50 | 50 120 120 90 90 105 100 105 105 260 50 Average Speed 125 | 114 120 120 115 90 105 104 105 126 378 348 Slowest Speed 800 | 120 120 120 260 90 105 105 105 330 800 700 Overloaded Moves . | . . . . . . . . . . . Propulsion Burnouts . | . . . . . . . . . . . Robots Hopped . | . . . . . . . . . . . Cave-ins Triggered . | . . . . . . . . . . . Exploration Rate (%) 26 | 3 38 32 92 52 22 20 12 15 1 4 Regions Visited 10 Branch Regions 3 Pre-discovered Areas 2 | . . . 1 1 . . . . . . Known Exits Taken 1 | . . . . . 1 . . . . . Unknown Exits Taken 9 | 1 1 1 1 1 . 1 1 1 1 . Scrap Searched 1 | . . . . 1 . . . . . . Spaces Dug . | . . . . . . . . . . . Terrain Destroyed 55 | . . . . . 22 31 . 2 . . Melee . | . . . . . . . . . . . Projectile 2 | . . . . . . . . 2 . . AOE 53 | . . . . . 22 31 . . . . Terrain Rammed . | . . . . . . . . . . . Walls Destroyed . | . . . . . . . . . . . Machines Disabled . | . . . . . . . . . . . Actions | -11 -10 -10 -10 -9 -8 -7 -6 -5 -4 -3 --------- Run | Yrd Mat Min Exi Min Mat Fac Fac Fac Fac Res Total 4987 | 64 438 214 759 386 303 985 680 883 69 206 Wait . | . . . . . . . . . . . Move 4585 | 48 392 180 751 359 276 910 651 751 64 203 Hop . | . . . . . . . . . . . Pick Up 109 | 10 10 4 4 11 13 25 9 22 . 1 Fast Attach . | . . . . . . . . . . . Attach 42 | 6 1 . . . 4 8 3 16 2 2 Detach . | . . . . . . . . . . . Swap 47 | . 6 5 3 2 3 8 4 14 2 . Drop 65 | . 8 6 1 4 2 17 7 19 1 . Fire 130 | . 21 19 . 6 5 14 4 61 . . Melee . | . . . . . . . . . . . Ram . | . . . . . . . . . . . Kick 9 | . . . . 4 . 3 2 . . . Crush . | . . . . . . . . . . . Escape Stasis . | . . . . . . . . . . . Rewire . | . . . . . . . . . . . Trap . | . . . . . . . . . . . Miscellaneous . | . . . . . . . . . . . Route ------- -11/Scrapyard -10/Materials -10/Mines (discovered 2 exits: *Exi / Sub) -10/Exiles (discovered 2 exits: [*Min x2]) -9/Mines -8/Materials (discovered 4 exits: *Fac x3 / Sto) -7/Factory (discovered 2 exits: [*Fac] / [*Low]) -6/Factory (discovered 2 exits: *Fac / [*Low]) -5/Factory (discovered 2 exits: [*Fac] / [*Upp]) -4/Factory -3/Research History --------- Turn | Location | Event 9 | -11/Scrapyard | Discovered new exit (range 16) 72 | -11/Scrapyard | Entered Materials 300 | -10/Materials | Build established: Mutant 337 | -10/Materials | Discovered new exit (range 15) 629 | -10/Materials | Entered Mines 709 | -10/Mines | Identified exit to Subcaves 909 | -10/Mines | Deemed a non-threat by the Exiles lab entrance 910 | -10/Mines | Discovered new exit (range 5) 917 | -10/Mines | Entered Exiles 947 | -10/Exiles | Discovered new exit (range 15) 970 | -10/Exiles | Met 8R-AWN 989 | -10/Exiles | Met EX-HEX 1047 | -10/Exiles | Met EX-DEC 1102 | -10/Exiles | Visited The Gauntlet 1274 | -10/Exiles | Learned location of Zion (-6) 1372 | -10/Exiles | Discovered new exit (range 14) 1513 | -10/Exiles | Met EX-BIN 1539 | -10/Exiles | Aligned with FarCom system 1540 | -10/Exiles | Given EX-Vault access code 1663 | -10/Exiles | Opened EX-Vault 1671 | -10/Exiles | Found Prototype Leg 1676 | -10/Exiles | Found Prototype Leg 1677 | -10/Exiles | Identified Potential Leg (x2) 1699 | -10/Exiles | Warned to stay clear of 0b10 Research branches 1792 | -10/Exiles | Left Exiles lab with Potential Leg 1792 | -10/Exiles | Entered Mines 1939 | -9/Mines | Received a Rocket Launcher from a helpful Derelict 1970 | -9/Mines | Learned Materials garrison access intel 1971 | -9/Mines | Learned 8 Materials zone layouts 1982 | -9/Mines | Found a hidden stash of uninstalled traps 2143 | -9/Mines | Discovered new exit (range 7) 2144 | -9/Mines | Learned location of Storage (-8) 2151 | -9/Mines | Entered Materials 2151 | -8/Materials | Evolved 4 slots: Power x1, Propulsion x2, Utility x1 2152 | -8/Materials | Identified exit to Factory 2152 | -8/Materials | Identified exit to Storage 2153 | -8/Materials | Loaded intel: 1 garrison access location 2357 | -8/Materials | Met 7R-MNS 2478 | -8/Materials | Entered Factory 2478 | -7/Factory | Evolved 2 slots: Utility x1, Weapon x1 2479 | -7/Factory | Caught up to 7R-MNS 2550 | -7/Factory | Discovered new exit (range 10) 2835 | -7/Factory | Build established: Scavenger-Skirmisher 3008 | -7/Factory | Lost 3 parts (2p1w) 3524 | -7/Factory | Discovered new exit (range 11) 3535 | -7/Factory | Entered another Factory area 3535 | -6/Factory | Evolved 2 slots: Power x1, Utility x1 3536 | -6/Factory | Caught up to 7R-MNS 3901 | -6/Factory | Discovered new exit (range 15) 4055 | -6/Factory | Build established: Skirmisher 4241 | -6/Factory | Discovered new exit (range 12) 4256 | -6/Factory | Entered another Factory area 4256 | -5/Factory | Evolved 2 slots: Utility x1, Weapon x1 4257 | -5/Factory | Caught up to 7R-MNS 4300 | -5/Factory | Discovered new exit (range 15) 4871 | -5/Factory | 7R-MNS lamented failing the tripod run 5188 | -5/Factory | Garrison activated, responded to threat 5342 | -5/Factory | Core integrity fell below 50% 5376 | -5/Factory | Discovered new exit (range 15) 5439 | -5/Factory | Entered another Factory area 5439 | -4/Factory | Evolved 2 slots: Power x1, Utility x1 5442 | -4/Factory | Lost 23 parts (5p4n5u9w) 5444 | -4/Factory | Discovered new exit (range 9) 5650 | -4/Factory | Core integrity fell below 50% 5670 | -4/Factory | Core integrity fell below 20% 5673 | -4/Factory | Lost 4 parts (1n2u1w) 5684 | -4/Factory | Entered Research 5684 | -3/Research | Evolved 2 slots: Utility x1, Weapon x1 5902 | -3/Research | Build established: Mutant 6344 | -3/Research | Core integrity fell below 50% 6352 | -3/Research | System corruption reached 10% 6363 | -3/Research | Core integrity fell below 20% 6382 | -3/Research | Lost 4 parts (1n3u) 6394 | -3/Research | Destroyed by S-43 Plague with Heavy Machine Gun Last Messages --------------- avoid entering Testing or Quarantine. ALERT: Security rotation in progress. ALERT: Rogue bot located, Programmers report to Research Zone 8X. Acquired Adv. Medium Treads. ALERT: All DSF locations entering lockdown mode. Engineering Station disabled. P-80 Master resets P-80 Master, system corruption cleaned. Terminal disabled. Adv. Medium Treads destroyed. Weapon Cycler destroyed. Imp. Heat Sink destroyed. P-80 Master resets P-80 Master, system corruption cleaned. Hcp. Storage Unit destroyed. [Achievement: System Compromised] P-80 Master resets P-80 Master, system corruption cleaned. System corrupted: Heat flow error (+108). Map ----- +----------------------------------------------------+ | # # # """"???????????????????????????? | | # # ########???????????????????????????? | | ########## #??????????????????????????????????? | | ?????????# #??????????????????????????????????? | | ?????????# #??????????????????????????????????? | | ?????????# #??????????????????????????????????? | | ?????????# #??????????????????????????????????? | | ?????????# #??????????????????????????????????? | | ?????????# #??????????????????????????????????? | | ?????????# #??????????????????????????????????? | | ?????????# #??????????????????????????????????? | | ?????????# #??????????????????????????????????? | | ?????????# #??????????????????????????????????? | | ?????????# #??????????????????????????????????? | | ?????????# #??????????????????????????????????? | | ?????????# ###+###########????????????????????? | | ?????????# #????????????????????? | | ?????????# p #????????????????????? | | ?????????# p #????????????????????? | | ?????????# p #????????????????????? | | ?????????#########s##### #????????????????????? | | ?????????????# # #????????????????????? | | ?????????????# #s #????????????????????? | | ?????????????# ss #????????????????????? | | ?????????????# # #????????????????????? | | ?????????????# # @ #????????????????????? | | ?????????????# ***?# #????????????????????? | | ?????????????# ***?# #????????????????????? | | ?????????????# ! **??# #????????????????????? | | ?????????????########??# #????????????????????? | | ???????????????????????# ????????????????????? | | ???????????????????????# ???????????????????? | | ???????????????????????# ???????????????????? | | ???????????????????????# ??????????????????? | | ???????????????????????########+?????????????????? | | ?????????????????????????????????????????????????? | | ?????????????????????????????????????????????????? | | ?????????????????????????????????????????????????? | | ?????????????????????????????????????????????????? | | ?????????????????????????????????????????????????? | | ?????????????????????????????????????????????????? | | ?????????????????????????????????????????????????? | | ?????????????????????????????????????????????????? | | ?????????????????????????????????????????????????? | | ?????????????????????????????????????????????????? | | ?????????????????????????????????????????????????? | | ?????????????????????????????????????????????????? | | ?????????????????????????????????????????????????? | | ?????????????????????????????????????????????????? | | ?????????????????????????????????????????????????? | +----------------------------------------------------+ Best States ------------- Heat Dissipation 90 Energy Generation 59 Energy Capacity 810 Matter Stores 500 Matter Capacity 500 Sight Range 16 Terrain Scan Density 10 Armor Coverage 150 Weapon Cycling 20 Evasion (%) 57 Recoil Reduction 1 Item Schematics ----------------- None Robot Schematics ------------------ None Fabricated ------------ Nothing Alien Tech Used ----------------- None Achievements -------------- Close Call Dangerous Findings Dynamic Key Please Form A Line Respectable Loadout System Compromised Challenges ------------ None Game ------ Seed SpliceDecoderDoomcannon Manual? 0 Play Time 01:03:38 Cumulative 7.3 hours Start 2024.08.11 @ 18:10:26 End 2024.08.11 @ 19:15:46 Sessions 1 Manual Loads 0 Difficulty Rogue Special Mode None Game No. 8 Rogue 5 Adventurer 3 Explorer 0 Win Type - Total 0 Types 0/0/0/0/0/0/0/0/0 Lore% 7 Gallery% 12 Achievement% 13 Wizard Run 0 Options --------- Layout 1 ASCII 0 Keyboard 0 Movement Arrows Keybinds 0 Fullscreen 1 Font 32/SmallcapsGlow Map View 50x35 Zoom Use 0% Tactical HUD 0 Map Filters NONE Filters NONE Steam 1 RUN: d188d203-c1eb-4176-a81d-750d0e3c8bb7